bitfinex-derivatives/quotes_ETHF0:USTF0_20250730
["timestamp","ask_amount","ask_price","bid_price","bid_amount"]
[1753882678962,1.340035,3769.9,3769.4,3.2078]
[1753882679156,1.83608,3769.4,3769.3,0.8454]
[1753882679462,1.83608,3769.4,3768.8,4.0532]
[1753882679463,0.53065,3768.9,3768.8,4.0532]
[1753882679661,0.53065,3769.0,3768.8,7.45325]
[1753882679965,0.53065,3769.0,3768.9,3.7148]
[1753882680161,0.53068,3768.7,3768.6,1.4988]
[1753882680367,0.53072,3768.5,3768.3,2.02953]
[1753882680663,0.53072,3768.5,3768.4,1.4988]
[1753882680858,0.53902,3768.5,3768.4,1.4988]
[1753882681063,1.2972,3768.5,3768.4,2.3442]
[1753882681267,1.2972,3768.5,3768.4,3.7148]
[1753882681667,0.5307,3768.6,3768.4,3.7148]
[1753882681870,0.53072,3768.5,3768.4,2.3442]
[1753882682260,41.33072,3768.5,3768.4,2.3442]
[1753882682567,41.33072,3768.5,3768.2,5.10914]
[1753882682568,4.505,3769.4,3768.6,2.3442]
[1753882682766,0.53069,3768.7,3768.6,3.7148]
[1753882683068,0.53067,3768.8,3768.7,3.7148]
[1753882683367,1.82787,3768.8,3768.6,3.2078]
[1753882683565,1.3055,3768.7,3768.6,4.0532]
[1753882683762,0.53067,3768.8,3768.7,3.7148]
[1753882683960,0.53076,3768.2,3768.0,3.73857]
[1753882684165,0.53076,3768.2,3768.1,1.4988]
[1753882684468,1.82796,3768.2,3768.1,2.3442]
[1753882685159,1.82796,3768.2,3768.1,3.7148]
[1753882685472,1.83629,3767.9,3767.8,0.8454]
[1753882685674,1.83629,3767.9,3767.8,2.3442]
[1753882686170,1.83629,3767.9,3767.8,0.8454]
[1753882688688,1.82799,3767.9,3767.8,3.7451]
[1753882688978,1.3779,3768.9,3768.3,1.4009]
[1753882689180,0.5307,3768.6,3768.5,3.7866]
[1753882689485,0.53068,3768.7,3768.6,3.7866]
[1753882690086,0.53074,3768.4,3768.2,2.91644]
[1753882690283,1.3853,3768.3,3768.2,1.5122]
[1753882690581,1.3779,3768.3,3768.2,1.5122]
[1753882690885,1.3779,3768.3,3768.2,2.3857]
[1753882691279,0.0074,3768.7,3768.3,0.8735]
[1753882691480,1.3779,3768.7,3768.0,3.2078]
[1753882691683,1.90858,3768.7,3768.6,2.3857]
[1753882692288,0.53067,3768.8,3768.7,3.7866]
[1753882692581,40.8074,3769.1,3768.0,3.2078]
[1753882692883,0.53089,3767.2,3766.9,3.2078]
[1753882693080,1.3779,3767.1,3767.0,1.5122]
[1753882693482,1.3779,3767.1,3767.0,2.3857]
[1753882693981,1.3779,3767.5,3767.3,2.3857]
[1753882694186,1.3779,3767.5,3767.4,2.3857]
[1753882694381,40.8,3767.6,3767.5,0.53085]
[1753882694584,3.2078,3767.8,3767.7,0.53082]
[1753882694784,3.2078,3767.8,3767.7,3.7866]
[1753882695088,0.53075,3768.2,3767.7,3.2078]
[1753882695383,1.3779,3768.6,3768.1,3.2078]
[1753882695583,0.53074,3768.3,3768.1,3.2078]
[1753882695986,0.53073,3768.4,3768.2,0.53075]
[1753882696184,0.53073,3768.4,3768.3,3.7866]
[1753882696484,4.5857,3769.0,3768.4,2.2744]
[1753882696689,4.5857,3769.0,3768.5,1.5122]
[1753882696985,0.0074,3769.5,3768.9,3.2078]
[1753882697183,0.53054,3769.7,3769.5,3.7866]
[1753882697378,0.53054,3769.7,3769.6,3.7866]
[1753882697586,0.74811472,3769.7,3769.6,3.7866]
[1753882697781,1.59547472,3769.7,3769.6,2.3857]
[1753882697983,1.59547472,3769.7,3769.6,0.8735]
[1753882698186,1.59547472,3769.7,3769.6,2.3857]
[1753882698588,0.21757472,3769.7,3769.6,3.7866]
[1753882698791,0.73052,3769.9,3769.6,3.7866]
[1753882699185,0.2,3769.9,3769.6,3.7866]
[1753882699487,0.2,3769.9,3769.8,3.7866]
[1753882699693,1.5779,3769.9,3769.8,3.7866]
[1753882699992,2.32054256,3769.9,3769.8,0.8735]
[1753882700194,6.5853,3769.9,3769.8,0.8735]
[1753882700395,1.3779,3769.7,3769.6,1.5122]
[1753882700692,0.53055,3769.6,3769.5,2.9131]
[1753882700894,41.33055,3769.6,3769.5,2.9131]
[1753882701196,1.90845,3769.6,3769.5,2.3857]
[1753882701799,1.91585,3769.6,3769.5,2.3857]
[1753882702898,1.91585,3769.6,3769.5,0.8735]
[1753882703491,1.90845,3769.6,3769.5,2.3857]
[1753882703694,1.90845,3769.6,3769.5,3.7866]
[1753882703992,40.8,3769.8,3769.3,3.2078]
[1753882703993,0.53058,3769.4,3769.3,4.6087]
[1753882704592,40.8,3769.8,3769.3,3.2078]
[1753882704787,40.8,3769.8,3769.4,3.7866]
[1753882704788,0.53057,3769.5,3769.4,3.7866]
[1753882704994,0.53057,3769.5,3769.4,2.3857]
[1753882704995,1.90847,3769.5,3769.4,2.3857]
[1753882705193,1.91587,3769.5,3769.4,2.3857]
[1753882705394,1.90847,3769.5,3769.4,2.3857]
[1753882705700,1.90847,3769.5,3769.4,3.7866]
[1753882706298,0.53057,3769.5,3769.4,3.7866]
[1753882707497,0.74808862,3769.5,3769.4,3.7866]
[1753882707807,0.74812562,3769.5,3769.4,3.7866]
[1753882708104,2.12602562,3769.5,3769.4,3.7866]
[1753882708794,2.12602562,3769.5,3769.4,2.3857]
[1753882709001,2.13052562,3769.5,3769.4,2.3857]
[1753882709696,2.12602562,3769.5,3769.4,2.3857]
[1753882709901,0.21755562,3769.5,3769.4,3.7866]
[1753882710199,0.21755562,3769.5,3769.3,0.53059]
[1753882710200,0.2,3769.9,3769.2,1.50981258]
[1753882710400,0.2,3769.9,3769.8,6.9944]
[1753882714301,1.8,3769.9,3769.8,5.5935]
[1753882714904,0.2,3769.9,3769.8,6.9944]
[1753882716606,1.5779,3769.9,3769.8,3.7866]
[1753882716906,1.5779,3769.9,3769.8,2.3857]
[1753882717105,1.5779,3769.9,3769.4,3.2078]
[1753882717106,0.53057,3769.5,3769.4,3.2078]
[1753882717308,1.3779,3769.8,3769.6,0.53054]
[1753882717505,0.2,3769.9,3769.8,4.31713]
[1753882717700,0.2,3769.9,3769.8,7.52493]
[1753882717910,1.90831,3770.7,3770.5,0.53042]
[1753882718208,0.018,3771.3,3771.0,0.8735]
[1753882718403,0.018,3771.3,3770.3,2.83594258]
[1753882718404,1.92621,3771.3,3771.2,2.3101]
[1753882718602,2.91266625,3771.3,3771.2,0.8735]
[1753882719106,0.53036,3771.0,3770.9,1.4366]
[1753882719306,0.53043,3770.6,3770.5,2.3704]
[1753882719502,1.51678441,3770.6,3770.5,2.3704]
[1753882719806,1.51678441,3770.6,3770.4,1.3548]
[1753882719807,0.53037,3770.9,3770.4,3.2078]
[1753882720011,1.87197,3770.9,3770.6,0.53041]
[1753882720310,1.87197,3770.9,3770.8,3.7252]
[1753882720700,1.87197,3770.9,3770.8,2.3704]
[1753882720899,2.09717,3770.9,3770.8,2.3704]
[1753882721100,2.09717,3770.9,3770.4,4.5626]
[1753882721101,2.09723,3770.5,3770.4,2.3704]
[1753882721703,0.53042,3770.6,3770.5,1.4366]
[1753882721908,0.53042,3770.6,3770.5,3.7252]
[1753882722507,0.53042,3770.6,3770.5,2.3704]
[1753882722508,1.87202,3770.6,3770.5,2.3704]
[1753882722706,2.66769,3770.5,3770.2,0.9338]
[1753882722911,1.5668,3770.1,3769.9,0.9338]
[1753882723111,0.7557,3770.0,3769.9,0.9338]
[1753882723308,2.0973,3770.0,3769.9,0.9338]
[1753882723609,1.87203,3770.5,3770.2,0.53047]
[1753882723805,0.76160686,3770.4,3770.2,0.53047]
[1753882724004,2.09723,3770.5,3770.4,2.3704]
[1753882724210,2.85879869,3770.5,3770.4,2.3704]
[1753882724715,0.76156869,3770.5,3770.4,3.7252]
[1753882725709,2.09724,3770.4,3770.3,3.2078]
[1753882725906,1.3416,3769.9,3769.7,3.7252]
[1753882726103,1.3416,3769.9,3769.8,1.4366]
[1753882726306,0.53053,3769.8,3769.6,3.2078]
[1753882726506,0.2252,3769.8,3769.7,1.4366]
[1753882726707,0.5305,3770.0,3769.9,2.3704]
[1753882726907,0.2252,3770.6,3770.3,0.9338]
[1753882727209,2.63515395,3770.5,3770.4,0.9338]
[1753882727413,2.09723,3770.5,3770.4,2.3704]
[1753882727623,3.2078,3771.1,3770.7,0.53039]
[1753882727809,0.53036,3771.0,3770.9,3.7252]
[1753882728116,1.87196,3771.0,3770.9,3.7252]
[1753882728713,2.09716,3771.0,3770.9,2.3704]
[1753882730417,1.87196,3771.0,3770.9,2.3704]
[1753882730720,0.53036,3771.0,3770.9,3.7252]
[1753882730921,0.53035,3771.1,3770.9,4.25557]
[1753882731213,0.53034,3771.2,3771.0,2.3704]
[1753882731412,0.53034,3771.2,3771.1,3.7252]
[1753882731613,1.87194,3771.2,3771.1,3.7252]
[1753882732008,0.018,3771.3,3771.2,4.25553]
[1753882732220,0.2,3771.9,3771.8,3.7252]
[1753882732518,0.96315623,3771.9,3771.8,3.7252]
[1753882733425,0.94870873,3772.7,3772.2,0.53018]
[1753882733716,1.87175,3772.5,3772.4,2.3704]
[1753882734021,3.26023095,3772.5,3772.4,2.3704]
[1753882734318,0.76316339,3772.5,3772.4,3.7252]
[1753882734817,0.76294924,3772.5,3772.2,3.2078]
[1753882735021,0.76294924,3772.4,3772.3,0.53017]
[1753882735214,0.76294924,3772.4,3772.3,2.90057]
[1753882735415,0.76294924,3772.4,3772.3,4.25537]
[1753882735718,0.76294924,3772.4,3772.3,3.7252]
[1753882736116,0.53017,3772.4,3772.2,3.2078]
[1753882736516,0.53017,3772.4,3772.2,3.73798]
[1753882736721,0.53015,3772.5,3772.3,0.53016]
[1753882736916,0.53015,3772.5,3772.4,3.7252]
[1753882737221,1.3416,3772.5,3772.4,4.25536]
[1753882737424,0.53014,3772.6,3772.5,3.7252]
[1753882737926,2.29694,3772.6,3772.5,2.3704]
[1753882738118,2.29697,3772.3,3772.2,5.5782]
[1753882738425,2.29702,3772.0,3771.9,2.9338]
[1753882738819,1.3416,3772.0,3771.9,4.3704]
[1753882739122,0.5302,3772.2,3772.1,3.7252]
[1753882739320,2.297,3772.2,3772.1,2.3704]
[1753882739922,3.04273964,3772.2,3772.1,2.3704]
[1753882740117,1.8718,3772.2,3772.1,2.3704]
[1753882740318,2.69482,3772.0,3771.9,2.0]
[1753882740520,2.69482,3772.0,3771.1,1.4366]
[1753882740521,0.53033,3771.2,3771.1,5.5782]
[1753882740730,2.29713,3771.2,3771.1,0.9338]
[1753882740916,1.3416,3771.2,3771.1,3.7252]
[1753882741116,0.53032,3771.3,3771.2,2.3704]
[1753882741314,0.53032,3771.3,3771.2,3.7252]
[1753882741520,0.53033,3771.2,3771.1,3.2078]
[1753882741719,0.53032,3771.3,3771.1,3.73813]
[1753882741921,0.53031,3771.4,3771.1,3.73813]
[1753882742123,0.53032,3771.3,3771.2,3.7252]
[1753882742329,1.87192,3771.3,3771.2,3.7252]
[1753882742530,1.7668,3772.1,3771.3,1.32579]
[1753882742719,0.53018,3772.3,3772.0,2.2886]
[1753882742924,0.53018,3772.3,3772.1,2.7914]
[1753882743123,1.87177,3772.3,3772.2,2.3704]
[1753882743321,40.8,3772.5,3772.2,2.3704]
[1753882743525,0.53014,3772.6,3772.4,4.25535]
[1753882743721,0.53015,3772.5,3772.3,1.3548]
[1753882743917,1.3416,3772.5,3772.4,2.3704]
[1753882744124,1.3416,3772.5,3772.4,3.72022948]
[1753882744533,1.3416,3772.5,3772.4,2.36542948]
[1753882744534,1.7718,3772.5,3772.4,2.36542948]
[1753882744830,1.7718,3772.5,3772.4,0.9338]
[1753882745217,1.3416,3773.2,3772.4,3.61399]
[1753882745423,2.08694275,3773.1,3773.0,2.2886]
[1753882745821,0.74534275,3773.1,3773.0,2.2886]
[1753882746018,2.08694275,3773.1,3773.0,0.9338]
[1753882746231,2.08694275,3773.1,3773.0,3.7252]
[1753882746430,0.94870873,3773.8,3773.0,3.7252]
[1753882746636,0.018,3774.3,3774.2,3.32131]
[1753882746923,0.018,3774.3,3774.2,3.7252]
[1753882747231,3.2079,3774.3,3774.1,3.2078]
[1753882747523,0.018,3774.3,3774.2,22.3188]
[1753882747824,0.52977,3775.2,3774.2,22.3188]
[1753882748020,1.3416,3775.3,3775.0,0.52979]
[1753882748226,1.89126676,3775.8,3775.2,6.933]
[1753882748426,0.20003109,3775.7,3775.3,1.43325]
[1753882748624,0.20003109,3775.6,3775.5,4.26422]
[1753882748823,0.20003109,3775.8,3775.5,6.9423]
[1753882749127,1.55503109,3775.7,3775.6,2.4298]
[1753882749318,0.2155,3772.8,3771.0,3.33265996]
[1753882749523,0.74581,3771.3,3771.0,3.33265996]
[1753882749821,0.5303,3771.5,3771.3,0.9035]
[1753882750025,3.2078,3771.4,3771.2,0.01856148]
[1753882750221,3.2078,3772.2,3771.3,1.0804]
[1753882750426,3.2078,3771.4,3771.3,1.5263]
[1753882750624,3.7381,3771.4,3771.2,0.01856148]
[1753882750824,3.9536,3771.4,3771.2,1.48e-06]
[1753882751027,0.2155,3771.3,3771.2,1.48e-06]
[1753882752130,3.7381,3771.4,3771.2,0.90350148]
[1753882752520,3.7381,3771.4,3771.3,1.9839]
[1753882752724,3.2078,3771.4,3771.3,3.5102]
[1753882753631,3.2078,3771.4,3771.2,1.48e-06]
[1753882753932,0.53031,3771.3,3771.2,1.48e-06]
[1753882754133,4.05156944,3771.3,3771.2,1.48e-06]
[1753882754332,9.05156944,3771.3,3771.2,1.48e-06]
[1753882754631,49.85156944,3771.3,3771.2,1.48e-06]
[1753882755126,41.33031,3771.3,3771.2,1.48e-06]
[1753882756631,41.33031,3771.3,3771.2,0.90350148]
[1753882757932,3.2078,3771.4,3771.2,0.90350148]
[1753882758334,0.53031,3771.3,3771.2,0.90350148]
[1753882759234,0.53031,3771.3,3771.2,1.48e-06]
[1753882760631,44.53811,3771.4,3771.2,1.48e-06]
[1753882760834,0.53031,3771.3,3771.2,1.48e-06]
[1753882761427,3.2078,3771.4,3771.2,1.52630148]
[1753882761629,3.2078,3771.4,3771.3,1.9839]
[1753882762138,3.2078,3771.4,3771.3,0.9035]
[1753882762326,3.2078,3771.4,3771.3,3.5102]
[1753882762527,3.73806,3771.7,3771.6,0.9035]
[1753882763835,4.06830628,3771.7,3771.6,0.9035]
[1753882764339,0.5303,3771.4,3771.3,0.9035]
[1753882764543,0.86054628,3771.4,3771.2,1.48e-06]
[1753882764840,3.75354628,3771.3,3771.2,1.48e-06]
[1753882765230,3.53804628,3771.3,3771.2,1.48e-06]
[1753882765534,3.53804628,3771.3,3771.2,4.81490148]
[1753882765932,3.2078,3771.3,3771.2,4.81490148]
[1753882766133,3.2078,3771.3,3771.2,3.51020148]
[1753882766432,3.2078,3771.3,3771.2,4.81490148]
[1753882766633,3.2078,3771.3,3771.2,5.34523148]
[1753882767039,3.2078,3771.3,3771.2,4.81490148]
[1753882768735,3.2078,3771.3,3771.2,0.90350148]
[1753882769140,3.2078,3771.3,3771.2,1.48e-06]
[1753882769840,3.2078,3771.3,3771.2,0.90350148]
[1753882771440,3.2078,3771.3,3771.2,1.48e-06]
[1753882771638,3.2078,3773.0,3771.2,6.30470148]
[1753882771843,0.53021,3772.1,3771.6,5.04276]
[1753882772045,1.88516,3772.4,3772.1,0.9035]
[1753882772251,1.67199886,3772.3,3772.2,2.4298]
[1753882772434,1.67199886,3772.3,3772.2,1.0804]
[1753882772644,1.88519,3772.2,3771.9,2.4298]
[1753882772839,1.88519,3772.2,3771.7,1.83496]
[1753882772840,3.73802,3772.0,3771.8,1.0804]
[1753882773042,1.355,3771.9,3771.8,1.0804]
[1753882773346,3.2078,3772.0,3771.6,0.53027]
[1753882773536,3.2078,3772.0,3771.9,4.8149]
[1753882773737,3.2078,3772.4,3771.9,4.8149]
[1753882773943,1.533,3773.3,3772.6,0.53012]
[1753882774145,41.11703802,3773.2,3772.8,2.4298]
[1753882774336,0.31703802,3773.1,3773.0,3.7345]
[1753882774744,0.31703802,3773.1,3773.0,4.8149]
[1753882775445,0.53003,3773.4,3773.1,0.53006]
[1753882775641,41.33001,3773.5,3773.2,2.4298]
[1753882775842,0.30289862,3773.4,3773.3,3.7345]
[1753882776036,3.19089862,3773.4,3773.3,1.9839]
[1753882776244,0.53008,3773.0,3772.9,2.4298]
[1753882776438,1.88508,3773.0,3772.9,2.4298]
[1753882776639,3.41808,3773.0,3772.9,1.0804]
[1753882777347,3.41808,3773.0,3772.9,3.5102]
[1753882777546,1.88508,3773.0,3772.9,3.5102]
[1753882778048,1.88508,3773.0,3772.9,1.0804]
[1753882778049,5.08253833,3773.0,3772.9,1.0804]
[1753882778256,6.02963784,3773.0,3772.9,1.0804]
[1753882778552,0.53019,3772.2,3772.1,2.3167]
[1753882778748,2.815,3772.5,3772.2,1.4492]
[1753882778749,0.53016,3772.4,3772.2,1.4492]
[1753882779049,1.287,3772.5,3772.2,1.4492]
[1753882779050,0.53015,3772.5,3772.4,3.6122]
[1753882779239,2.5849043,3772.5,3772.4,3.6122]
[1753882779553,0.5301,3772.8,3772.6,1.2955]
[1753882779742,0.5301,3772.8,3772.7,3.6122]
[1753882779946,0.53017,3772.3,3772.2,2.7447]
[1753882780243,3.34517,3772.3,3772.2,0.8675]
[1753882780442,1.81723,3771.9,3771.8,0.8675]
[1753882780642,0.5303,3771.4,3771.3,0.8675]
[1753882780948,1.287,3771.3,3771.1,2.163]
[1753882781250,42.328,3771.3,3771.1,0.8675]
[1753882781552,40.8,3771.3,3771.1,0.8675]
[1753882781747,40.8,3771.3,3770.3,0.53045]
[1753882781951,40.8,3771.3,3770.2,2.3167]
[1753882782350,41.6723,3771.3,3770.0,3.2078]
[1753882782551,43.2003,3771.3,3770.4,3.6122]
[1753882783148,63.6013,3771.3,3770.6,2.3167]
[1753882783953,62.0733,3771.3,3770.6,2.3167]
[1753882784154,66.201,3771.3,3770.1,2.3167]
[1753882784750,66.201,3771.3,3770.1,2.84718]
[1753882784951,66.201,3771.3,3770.1,2.3167]
[1753882785149,66.201,3771.3,3770.1,2.84717]
[1753882785350,61.201,3771.3,3770.1,2.3167]
[1753882785861,66.201,3771.3,3770.1,2.3167]
[1753882786152,69.57093737,3771.3,3770.1,2.3167]
[1753882786752,69.57093737,3771.3,3770.1,4.14267]
[1753882786953,69.57093737,3771.3,3770.2,2.3167]
[1753882787257,69.57093737,3771.3,3770.2,0.8675]
[1753882787662,69.48493737,3771.3,3770.2,0.8675]
[1753882788372,64.46393737,3771.3,3770.3,2.7447]
[1753882788563,64.46393737,3771.3,3770.5,1.4492]
[1753882788958,62.617,3771.3,3770.9,0.8675]
[1753882789163,63.904,3771.3,3771.2,0.86750148]
[1753882789559,61.089,3771.3,3771.2,1.48e-06]
[1753882790760,0.53048,3770.1,3769.9,2.163]
[1753882790960,3.73828,3770.1,3770.0,1.0804]
[1753882791164,25.52528,3770.1,3770.0,1.0804]
[1753882791465,67.61228,3770.1,3770.0,1.0804]
[1753882791666,66.08428,3770.1,3770.0,4.6926]
[1753882791867,44.53828,3770.1,3770.0,4.6926]
[1753882792060,64.78328,3770.1,3770.0,4.6926]
[1753882792363,66.07028,3770.1,3770.0,3.3971]
[1753882792665,67.59828,3770.1,3770.0,1.9479]
[1753882792859,67.59828,3770.1,3770.0,0.8675]
[1753882793067,4.21781,3769.9,3769.8,0.19629428]
[1753882793467,4.21781,3769.9,3769.8,4.88889428]
[1753882793468,0.53051,3769.9,3769.8,4.88889428]
[1753882794058,44.53829,3770.1,3769.8,5.41940428]
[1753882794265,20.206,3770.0,3769.8,0.19629428]
[1753882794458,44.0078,3770.1,3770.0,1.0804]
[1753882794766,44.0078,3770.1,3770.0,4.6926]
[1753882794966,3.2078,3770.1,3770.0,4.6926]
[1753882796163,4.4948,3770.1,3770.0,4.6926]
[1753882796365,1.287,3770.1,3770.0,4.6926]
[1753882796567,21.483,3770.1,3770.0,4.6926]
[1753882796763,26.2188,3770.1,3770.0,3.3971]
[1753882797073,26.2188,3770.1,3770.0,1.9479]
[1753882797569,26.2188,3770.1,3770.0,3.3971]
[1753882797769,0.5305,3770.0,3769.8,0.19629428]
[1753882797967,4.2178,3770.0,3769.9,1.0804]
[1753882798164,24.3608,3770.0,3769.8,1.06379428]
[1753882798367,3.6873,3769.9,3769.8,0.19629428]
[1753882799471,5.0,3769.9,3768.9,2.3167]
[1753882799669,0.53068,3768.7,3768.6,3.6122]
[1753882799971,1.81768,3768.7,3768.6,0.8675]
[1753882800176,1.81768,3768.7,3768.6,3.3971]
[1753882800177,3.34568,3768.7,3768.6,3.3971]
[1753882800373,1.528,3768.3,3768.2,1.46777626]
[1753882800677,21.639,3768.3,3768.2,0.01857626]
[1753882800875,3.2078,3768.4,3768.3,3.6122]
[1753882801174,20.11,3768.4,3768.3,4.13301]
[1753882801666,41.33071,3768.5,3768.3,4.13301]
[1753882801969,41.33071,3768.5,3768.4,4.13301]
[1753882802276,0.53069,3768.7,3768.4,4.13301]
[1753882802474,0.53069,3768.7,3768.6,4.13301]
[1753882802669,1.81769,3768.7,3768.6,2.83751]
[1753882802870,44.14569,3768.7,3768.6,1.38831]
[1753882803071,44.14569,3768.7,3768.6,2.83751]
[1753882803268,42.61769,3768.7,3768.6,4.13301]
[1753882803471,41.33069,3768.7,3768.6,4.13301]
[1753882803774,42.61769,3768.7,3768.6,4.13301]
[1753882804170,42.61769,3768.7,3768.6,2.83751]
[1753882804372,0.53074,3768.3,3768.2,2.33527626]
[1753882804572,20.65473,3768.4,3768.3,0.52081]
[1753882804867,20.124,3768.4,3768.3,4.13301]
[1753882805472,23.84551,3768.5,3768.4,3.6122]
[1753882805673,1.81771,3768.5,3768.4,4.13301]
[1753882805869,20.095,3768.6,3768.5,2.3167]
[1753882806074,40.8,3768.7,3768.5,0.52081]
[1753882806274,40.8,3768.7,3768.6,4.13301]
[1753882806475,60.888,3768.7,3768.6,4.13301]
[1753882806668,3.2078,3769.0,3768.7,0.53067]
[1753882806872,3.73844,3769.0,3768.9,4.13301]
[1753882807972,6.55344,3769.0,3768.9,0.52081]
[1753882808282,7.42574,3769.0,3768.9,0.52081]
[1753882808778,4.29687,3768.8,3768.7,0.8675]
[1753882809175,24.37387,3768.8,3768.7,1.38831]
[1753882809577,24.37387,3768.8,3768.7,0.52081]
[1753882809877,4.29694,3768.3,3768.2,6.26e-06]
[1753882810080,29.22063564,3768.3,3768.2,6.26e-06]
[1753882810686,73.44293992,3768.3,3768.2,6.26e-06]
[1753882810984,70.02063564,3768.3,3768.2,6.26e-06]
[1753882812079,70.02063564,3768.3,3768.2,3.67840626]
[1753882812080,44.53854,3768.3,3768.2,3.67840626]
[1753882812275,0.53074,3768.3,3768.2,4.19921626]
[1753882812672,20.035,3768.4,3768.2,0.52081626]
[1753882812978,0.5307,3768.6,3768.4,3.6784]
[1753882813178,20.5577,3768.6,3768.5,3.6784]
[1753882813384,20.5577,3768.6,3768.5,4.19921]
[1753882813577,0.5307,3768.6,3768.5,4.19921]
[1753882813777,20.5537,3768.6,3768.5,4.19921]
[1753882814279,20.53865,3768.9,3768.7,3.6784]
[1753882814485,0.53062,3769.2,3769.0,1.4454]
[1753882814680,0.5306,3769.3,3769.1,1.3768]
[1753882814881,0.53059,3769.4,3769.3,3.6784]
[1753882815180,0.53063,3769.0,3768.9,6.71888121]
[1753882815384,0.53063,3769.0,3768.9,8.43107121]
[1753882815684,0.53063,3769.1,3769.0,3.6784]
[1753882815882,19.999,3769.4,3769.3,0.52081]
[1753882816081,0.53056,3769.5,3769.3,0.52081]
[1753882816285,0.53056,3769.5,3769.4,0.52081]
[1753882816985,0.53055,3769.7,3769.4,0.52081]
[1753882817185,0.53055,3769.7,3769.6,3.6784]
[1753882817478,0.53052,3769.8,3769.6,3.34301]
[1753882817673,0.53052,3769.8,3769.7,3.6784]
[1753882817878,0.53049,3770.0,3769.8,2.3016]
[1753882818082,0.53049,3770.1,3770.0,4.19921]
[1753882819179,3.35999,3770.1,3770.0,2.82241]
[1753882820080,0.53054,3769.7,3769.6,2.3016]
[1753882820280,1.82734,3769.7,3769.6,2.3016]
[1753882820474,0.53054,3769.7,3769.6,4.19921]
[1753882820879,1.82734,3769.7,3769.6,4.19921]
[1753882821184,0.53054,3769.7,3769.6,4.19921]
[1753882821980,3.36004,3769.7,3769.6,1.96621]
[1753882822178,3.36004,3769.7,3769.2,3.6784]
[1753882822179,1.82739,3769.3,3769.2,3.6784]
[1753882822382,0.53066,3768.8,3768.5,3.2078]
[1753882822589,0.53066,3768.8,3768.7,1.4454]
[1753882822782,0.53066,3768.8,3768.7,4.19921]
[1753882823187,0.53066,3768.9,3768.7,0.52081]
[1753882823386,0.53066,3768.9,3768.8,4.19921]
[1753882823981,0.53066,3768.9,3768.8,0.52081]
[1753882824183,0.53069,3768.6,3768.5,6.03]
[1753882824385,3.36019,3768.6,3768.5,6.03]
[1753882824685,0.53065,3768.9,3768.5,6.03021]
[1753882824991,0.53065,3768.9,3768.8,0.52081]
[1753882825489,0.53065,3768.9,3768.8,4.19921]
[1753882826592,4.53428,3769.4,3769.0,3.6784]
[1753882826889,3.73838,3769.4,3769.3,4.19921]
[1753882827485,0.53058,3769.4,3769.3,4.19921]
[1753882830389,0.53056,3769.5,3769.4,3.6784]
[1753882830684,0.53048,3770.1,3769.9,1.3768]
[1753882830885,0.53042,3770.5,3770.1,1.3768]
[1753882831086,1.2968,3770.9,3770.6,2.233]
[1753882831288,1.2968,3770.9,3770.5,0.52081]
[1753882831289,3.2078,3771.4,3770.7,3.6784]
[1753882831488,1.32589,3771.0,3770.6,0.52081]
[1753882831680,4.2966,3770.7,3770.6,0.52081]
[1753882831884,3.35994,3770.4,3770.3,2.233]
[1753882832086,3.35994,3770.4,3770.3,3.6784]
[1753882832286,1.82729,3770.0,3769.9,2.3016]
[1753882832484,3.35999,3770.0,3769.9,2.82241]
[1753882832886,2.8295,3770.0,3769.9,2.82241]
[1753882833082,1.2968,3770.0,3769.9,4.19921]
[1753882833489,3.2078,3770.5,3769.9,4.19921]
[1753882833490,3.2078,3770.8,3770.2,0.8562]
[1753882833686,0.53042,3770.6,3770.4,1.4454]
[1753882833897,0.53042,3770.6,3770.5,3.6784]
[1753882834089,0.53042,3770.6,3770.5,4.19921]
[1753882834288,4.29662,3770.6,3770.5,1.37701]
[1753882834494,4.29662,3770.6,3770.5,0.52081]
[1753882835601,5.09277927,3770.6,3770.5,1.37701]
[1753882835800,4.15607927,3770.6,3770.5,2.82241]
[1753882836197,4.15607927,3770.6,3769.7,3.2078]
[1753882836198,0.53052,3769.8,3769.7,3.6784]
[1753882836403,1.82732,3769.8,3769.7,3.6784]
[1753882836699,3.36002,3769.8,3769.7,2.82241]
[1753882836900,4.29672,3769.8,3769.7,2.82241]
[1753882837101,3.36008,3769.4,3769.3,0.8562]
[1753882837600,4.29678,3769.4,3769.3,0.52081]
[1753882838495,40.8,3769.7,3769.3,0.52081]
[1753882838798,40.8,3769.7,3769.6,3.21121]
[1753882839193,1.32627,3770.0,3769.6,4.13241]
[1753882839395,1.85892,3769.8,3769.7,2.85551]
[1753882839694,2.34631993,3769.8,3769.7,4.13241]
[1753882839899,0.53058,3769.4,3769.3,2.3347]
[1753882840089,2.98416564,3770.0,3769.3,2.3347]
[1753882840090,0.53048,3770.1,3769.6,1.4135]
[1753882840295,0.48741913,3770.0,3769.4,0.52081]
[1753882840602,2.7972,3769.7,3769.6,2.3347]
[1753882840790,3.09245086,3769.7,3769.6,2.3347]
[1753882840995,3.09245086,3769.7,3769.6,2.85551]
[1753882841193,1.3284,3769.7,3769.6,4.13241]
[1753882841398,0.53053,3769.8,3769.7,3.6116]
[1753882841601,0.8256673,3769.8,3769.7,4.13241]
[1753882842404,0.53053,3769.8,3769.7,4.13241]
[1753882842702,0.53045,3770.4,3770.0,1.4135]
[1753882842999,0.53042,3770.6,3770.3,0.52081]
[1753882843200,0.53042,3770.6,3770.2,0.53046]
[1753882843397,0.5304,3770.7,3770.5,0.52081]
[1753882843598,43.59462,3771.2,3771.0,3.6116]